[Event "WSTCC-65 2024"]
[Site "Krakow"]
[Date "2024.07.05"]
[Round "4.5"]
[White "Binham, Timothy F."]
[Black "Carvalho, Herbert Abreu"]
[Result "1/2-1/2"]
[ECO "A46"]
[WhiteElo "2276"]
[BlackElo "2123"]
[Annotator "RC"]
[PlyCount "165"]
[EventDate "2024.07.01"]
[EventType "team-tourn"]
[EventCountry "POL"]
[SourceTitle "playchess.com"]
[Source "ChessBase"]
[SourceQuality "1"]
[TimeControl "40/5400+30:1800+30"]

1. d4 {[%emt 0:00:09]} Nf6 {[%emt 0:00:10]} 2. Nf3 {[%emt 0:00:13]} e6 {[%emt 0:02:47]} 3. g3 {[%emt 0:00:38]} b6 {[%emt 0:00:12]} 4. Bg2 {[%emt 0:00:05]} Bb7 {[%emt 0:00:04]} 5. O-O {[%emt 0:00:08]} c5 {[%emt 0:02:02]} 6. c4 {[%emt 0:01:16]} cxd4 {[%emt 0:04:59]} 7. Qxd4 {[%emt 0:01:39]} Nc6 {[%emt 0:02:19]} 8. Qf4 {[%emt 0:03:09]} d6 {[%emt 0:10:56]} 9. Nc3 {[%emt 0:01:15]} Be7 {[%emt 0:00:32]} 10. Rd1 {[%emt 0:03:16]} a6 {[%emt 0:01:50]} 11. b3 {[%emt 0:05:22]} O-O {[%emt 0:00:36]} 12. Ba3 {[%emt 0:03:33]} Ne8 {[%emt 0:03:26]} 13. Ne4 {[%emt 0:04:50]} d5 {[%emt 0:06:32]} 14. cxd5 {[%emt 0:01:56]} exd5 {[%emt 0:00:10]} 15. Bb2 {[%emt 0:05:06]} Qb8 {[%emt 0:05:52]} 16. Rxd5 {[%emt 0:04:16]} Qxf4 {[%emt 0:02:47]} 17. gxf4 {[%emt 0:00:49]} Rc8 {[%emt 0:12:36]} 18. Rd7 {[%emt 0:08:30]} Rc7 {[%emt 0:02:25]} 19. Rad1 {[%emt 0:01:52]} Nb8 {[%emt 0:01:32]} 20. Rxc7 {[%emt 0:07:05]} Nxc7 {[%emt 0:02:23]} 21. Nd4 {[%emt 0:08:43]} Rd8 {[%emt 0:04:33]} 22. Rc1 {[%emt 0:01:28]} Nd5 {[%emt 0:01:42]} 23. e3 {[%emt 0:04:22]} Rc8 {[%emt 0:01:43]} 24. Rd1 {[%emt 0:03:05]} g6 {[%emt 0:04:39]} 25. f5 {[%emt 0:02:33]} Nd7 {[%emt 0:00:57]} 26. h4 {[%emt 0:15:18]} N7f6 {[%emt 0:03:44]} 27. Ng5 {[%emt 0:03:37]} Rc7 {[%emt 0:00:36]} 28. Bf3 {[%emt 0:01:17]} h6 {[%emt 0:01:54]} 29. fxg6 {[%emt 0:05:31]} hxg5 {[%emt 0:01:08]} 30. hxg5 {[%emt 0:00:01]} Ne8 {[%emt 0:10:42]} 31. gxf7+ {[%emt 0:00:34]} Kxf7 {[%emt 0:00:19]} 32. Bh5+ {[%emt 0:00:14]} Kg8 {[%emt 0:01:48]} 33. Bxe8 {[%emt 0:01:01]} Nxe3 {[%emt 0:00:34]} 34. fxe3 {[%emt 0:01:09]} Bxg5 {[%emt 0:00:10]} 35. Ne6 {[%emt 0:00:44]} Bxe3+ {[%emt 0:00:20]} 36. Kf1 {[%emt 0:01:27]} Rc2 {[%emt 0:00:34]} 37. Bd4 {[%emt 0:00:18]} Bf3 {[%emt 0:02:47]} 38. Bxe3 {[%emt 0:01:25]} Bxd1 {[%emt 0:00:11]} 39. Bxb6 {[%emt 0:00:26]} Rxa2 {[%emt 0:00:29]} 40. Nd4 {[%emt 0:00:59]} Kf8 {[%emt 0:01:24]} 41. Bc6 {[%emt 0:31:06]} Ke7 {[%emt 0:30:35]} 42. Bc5+ {[%emt 0:00:00]} Kd8 {[%emt 0:00:00]} 43. b4 {[%emt 0:00:00]} Kc7 {[%emt 0:00:00]} 44. Bd5 {[%emt 0:00:00]} Ra1 {[%emt 0:00:00]} 45. Kf2 {[%emt 0:00:00]} Ba4 {[%emt 0:00:00]} 46. Ne6+ {[%emt 0:00:00]} Kd7 {[%emt 0:00:00]} 47. Bd4 {[%emt 0:00:00]} Rd1 {[%emt 0:00:00]} 48. Ke2 {[%emt 0:00:00]} Kd6 {[%emt 0:00:00]} 49. Bc4 {[%emt 0:00:00]} Rh1 {[%emt 0:00:00]} 50. Bc5+ {[%emt 0:00:00]} Ke5 {[%emt 0:00:00]} 51. Nc7 {[%emt 0:00:00]} Rc1 {[%emt 0:00:00]} 52. Bxa6 {[%emt 0:00:00]} Rxc5 {[%emt 0:00:00]} 53. bxc5 {[%emt 0:00:00]} Kd4 {[%emt 0:00:00]} 54. Ne6+ {[%emt 0:00:00]} Kd5 {[%emt 0:00:00]} 55. Bc8 {[%emt 0:00:00]} Kc4 {[%emt 0:00:00]} 56. Ke3 {[%emt 0:00:00]} Bc6 {[%emt 0:00:00]} 57. Kf4 {[%emt 0:00:00]} Bd5 {[%emt 0:00:00]} 58. Ba6+ {[%emt 0:00:00]} Kb4 {[%emt 0:00:00]} 59. Ke5 {[%emt 0:00:00]} Bxe6 {[%emt 0:00:00]} 60. Kd6 {[%emt 0:00:00]} Bg4 {[%emt 0:00:00]} 61. Bb7 {[%emt 0:00:00]} Kb5 {[%emt 0:00:00]} 62. Be4 {[%emt 0:00:00]} Bc8 {[%emt 0:00:00]} 63. Bd3+ {[%emt 0:00:00]} Kb4 {[%emt 0:00:00]} 64. c6 {[%emt 0:00:00]} Ka5 {[%emt 0:00:00]} 65. Kc7 {[%emt 0:00:00]} Bg4 {[%emt 0:00:00]} 66. Kd8 {[%emt 0:00:00]} Kb6 {[%emt 0:00:00]} 67. c7 {[%emt 0:00:00]} Kc6 {[%emt 0:00:00]} 68. Ba6 {[%emt 0:00:00]} Kd6 {[%emt 0:00:00]} 69. Bc8 {[%emt 0:00:00]} Be2 {[%emt 0:00:00]} 70. Bd7 {[%emt 0:01:15]} Ba6 {[%emt 0:00:00]} 71. Bg4 {[%emt 0:00:38]} Bb7 {[%emt 0:00:00]} 72. Bf3 {[%emt 0:03:23]} Ba6 {[%emt 0:00:00]} 73. Bg2 {[%emt 0:00:57]} Ke6 {[%emt 0:00:00]} 74. Bf1 {[%emt 0:02:12]} Bb7 {[%emt 0:00:00]} 75. Bc4+ {[%emt 0:05:24]} Kd6 {[%emt 0:00:00]} 76. Bb5 {[%emt 0:00:05]} Kc5 {[%emt 0:00:00]} 77. Be2 {[%emt 0:00:57]} Kd6 {[%emt 0:00:00]} 78. Bc4 {[%emt 0:00:58]} Kc5 {[%emt 0:00:00]} 79. Bb3 {[%emt 0:00:13]} Kd6 {[%emt 0:00:06]} 80. Ba2 {[%emt 0:00:32]} Ba6 {[%emt 0:00:33]} 81. Bb1 {[%emt 0:01:09]} Bb7 {[%emt 0:00:09]} 82. Be4 {[%emt 0:00:33]} Ba6 {[%emt 0:00:06]} 83. Bg2 1/2-1/2

[Event "WSTCC-65 2024"]
[Site "Krakow"]
[Date "2024.07.05"]
[Round "4.5"]
[White "Holst, Per"]
[Black "Beilfuss, Wilfried"]
[Result "1/2-1/2"]
[ECO "A46"]
[WhiteElo "2073"]
[BlackElo "2059"]
[Annotator "NA RC"]
[PlyCount "65"]
[EventDate "2024.07.01"]
[EventType "team-tourn"]
[EventCountry "POL"]
[SourceTitle "playchess.com"]
[Source "ChessBase"]
[SourceQuality "1"]
[TimeControl "40/5400+30:1800+30"]

1. d4 {[%emt 0:00:03]} Nf6 {[%emt 0:00:14]} 2. Nf3 {[%emt 0:00:10]} e6 {[%emt 0:00:35]} 3. g3 {[%emt 0:00:08]} b5 {[%emt 0:04:28]} 4. Bg2 {[%emt 0:00:19]} Bb7 {[%emt 0:00:07]} 5. O-O {[%emt 0:00:28]} c5 {[%emt 0:01:16]} 6. Bg5 {[%emt 0:01:49]} cxd4 {[%emt 0:03:28]} 7. Nxd4 {[%emt 0:00:48]} Bxg2 {[%emt 0:01:44]} 8. Kxg2 {[%emt 0:00:11]} a6 {[%emt 0:01:50]} 9. c3 {[%emt 0:02:24]} Be7 {[%emt 0:07:32]} 10. Nd2 {[%emt 0:05:40]} O-O {[%emt 0:03:26]} 11. N2f3 {[%emt 0:06:08]} Qc8 {[%emt 0:11:01]} 12. a4 {[%emt 0:03:25]} bxa4 {[%emt 0:11:05]} 13. Rxa4 {[%emt 0:01:05]} Nc6 {[%emt 0:01:01]} 14. Qd3 {[%emt 0:03:42]} Nxd4 {[%emt 0:01:32]} 15. Rxd4 {[%emt 0:00:23]} d5 {[%emt 0:01:53]} 16. Ra1 {[%emt 0:02:23]} Qb7 {[%emt 0:02:17]} 17. Ra2 {[%emt 0:01:31]} Rfc8 {[%emt 0:02:04]} 18. Bxf6 {[%emt 0:04:37]} Bxf6 {[%emt 0:01:13]} 19. Rb4 {[%emt 0:00:14]} Qa7 {[%emt 0:04:50]} 20. Nd4 {[%emt 0:02:46]} Bxd4 {[%emt 0:02:04]} 21. Rxd4 {[%emt 0:03:50]} g6 {[%emt 0:07:00]} 22. Rda4 {[%emt 0:00:41]} Rc6 {[%emt 0:00:08]} 23. b4 {[%emt 0:04:50]} Rc4 {[%emt 0:02:12]} 24. b5 {[%emt 0:14:17]} Rxa4 {[%emt 0:00:26]} 25. Rxa4 {[%emt 0:00:10]} a5 {[%emt 0:00:14]} 26. h4 {[%emt 0:02:39]} Qc5 {[%emt 0:03:36]} 27. c4 {[%emt 0:03:39]} Rd8 {[%emt 0:03:56]} 28. h5 {[%emt 0:04:02]} gxh5 {[%emt 0:01:17]} 29. Rxa5 {[%emt 0:05:01]} Qxc4 {[%emt 0:00:20]} 30. Qe3 {[%emt 0:03:25]} Qe4+ {[%emt 0:01:25]} 31. Qxe4 {[%emt 0:01:10]} dxe4 {[%emt 0:00:02]} 32. b6 {[%emt 0:00:49]} Rb8 {[%emt 0:00:14]} 33. Re5 {[%emt 0:00:17]} 1/2-1/2

[Event "WSTCC-65 2024"]
[Site "Krakow"]
[Date "2024.07.05"]
[Round "4.6"]
[White "Legky, Nikolay A"]
[Black "Bykhovsky, Avigdor"]
[Result "1-0"]
[ECO "C02"]
[WhiteElo "2339"]
[BlackElo "2335"]
[Annotator "TA"]
[PlyCount "81"]
[EventDate "2024.07.01"]
[EventType "team-tourn"]
[EventCountry "POL"]
[SourceTitle "playchess.com"]
[Source "ChessBase"]
[SourceQuality "1"]
[TimeControl "40/5400+30:1800+30"]

{[%evp 25,81,49,47,42,44,54,43,32,53,0,0,0,0,0,0,-40,-43,-34,-52,-69,0,0,8,0,10,0,76,74,78,88,86,86,98,101,118,115,121,81,76,27,104,51,46,41,50,41,125,59,62,8,39,8,337,337,325,328,1233,1183]} 1. e4 {[%emt 0:00:51]} e6 {[%emt 0:01:24]} 2. d4 {[%emt 0:00:07]} d5 {[%emt 0:00:02]} 3. e5 {[%emt 0:00:04]} c5 {[%emt 0:00:31]} 4. c3 {[%emt 0:00:06]} Nc6 {[%emt 0:01:05]} 5. Nf3 {[%emt 0:00:07]} Qb6 {[%emt 0:00:28]} 6. Be2 {[%emt 0:00:35]} Nh6 {[%emt 0:04:25]} 7. Bxh6 {[%emt 0:00:24]} gxh6 {[%emt 0:00:17]} 8. Qd2 {[%emt 0:00:06]} Bg7 {[%emt 0:00:59]} 9. O-O {[%emt 0:00:18]} O-O {[%emt 0:00:40]} 10. Na3 {[%emt 0:01:01]} cxd4 {[%emt 0:08:52]} 11. cxd4 {[%emt 0:00:06]} Bd7 {[%emt 0:04:23]} 12. Nc2 {[%emt 0:00:31]} f6 {[%emt 0:01:36]} 13. exf6 {[%emt 0:06:13]} Rxf6 {[%emt 0:00:54][%cal Oa8f8]} 14. b4 {[%emt 0:00:04]} a6 {[%emt 0:37:24]} 15. a4 {[%emt 0:00:53]} Rff8 {[%emt 0:02:09]} 16. Ra3 {[%emt 0:35:47] White is slightly better.} Be8 {[%emt 0:03:05]} 17. b5 {[%emt 0:11:08]} (17. Re3 $14) 17... axb5 $11 {[%emt 0:00:15]} 18. Bxb5 {[%emt 0:00:04]} Bg6 {[%emt 0:04:39]} 19. Bxc6 {[%emt 0:12:28]} Qxc6 {[%emt 0:00:37]} 20. Ne3 {[%emt 0:03:11][%cal Bc2e3,Be3g4,Bg4e5,Be5f3][%mdl 32]} Rxa4 {[%emt 0:01:33]} 21. Rxa4 {[%emt 0:00:12]} Qxa4 {[%emt 0:00:06]} 22. Ng4 {[%emt 0:00:02]} h5 {[%emt 0:06:15]} (22... b5 $15 23. Qe3 Kh8) 23. Nge5 {[%emt 0:00:05]} Rc8 {[%emt 0:09:52]} 24. h3 {[%emt 0:01:56]} Be4 {[%emt 0:06:50]} 25. Qb2 {[%emt 0:00:04]} Bxf3 {[%emt 0:01:47]} (25... Rf8 $11) 26. Qxb7 $1 $16 {[%emt 0:08:42]} (26. Nxf3 Qc6 $11) 26... Qe8 {[%emt 0:00:08]} 27. Nxf3 {[%emt 0:00:12]} (27. gxf3 Bxe5 28. dxe5 Kh8 $17) 27... Rb8 {[%emt 0:00:16]} 28. Qa6 {[%emt 0:01:56] White is much more active.} Ra8 {[%emt 0:00:25]} 29. Qe2 {[%emt 0:00:19]} Qg6 {[%emt 0:01:20]} 30. Re1 {[%emt 0:00:54]} Re8 {[%emt 0:00:17]} 31. Qb5 {[%emt 0:00:13]} Rf8 {[%emt 0:00:58]} 32. Re3 {[%emt 0:01:54]} (32. Kf1 $16) 32... Qf5 {[%emt 0:01:14]} (32... Bh6 $11 {keeps the balance.} 33. Rb3 Qc2) 33. Qd7 {[%emt 0:01:18]} (33. Qb6 $16) 33... Bxd4 $1 $14 {[%emt 0:00:50]} 34. Rxe6 {[%emt 0:01:49]} (34. Qxe6+ {simplifies} Qxe6 35. Rxe6 Bc5 36. Re5) 34... Bf6 {[%emt 0:00:21]} 35. Qc6 $36 {[%emt 0:04:19][%mdl 2048] White has the initiative.} d4 {[%emt 0:01:08] [#]} (35... Kh8 $14) 36. Qc4 {[%emt 0:04:42]} (36. g3 $1 $16) 36... Kh8 {[%emt 0:00:11]} 37. Rd6 {[%emt 0:01:15]} (37. Nxd4 $6 Qf4 38. Rxf6 Rxf6 $15 (38... Qxf6 39. Nf3 $11)) ({White should play} 37. Rb6 $14) 37... Rc8 {[%emt 0:00:42]} 38. Qd5 {[%emt 0:01:47]} (38. Rxf6 Qb1+ 39. Qf1 Rc1 $17) 38... Qf4 {[%emt 0:00:30][%mdl 8192]} (38... Qxd5 $11 {and Black stays safe.} 39. Rxd5 Rc1+ 40. Kh2 h4) 39. g3 $1 $18 {[%emt 0:00:06]} (39. Nxd4 $2 Rc1#) 39... Qc1+ {[%emt 0:00:50]} 40. Kg2 {[%emt 0:00:00]} Qh6 $2 {[%emt 0:00:35] [#]} (40... Rf8 41. Ne5 (41. Qxh5 Qc7 $18) (41. Nxd4 Qg5 $18) 41... Bxe5 42. Qxe5+ Kg8 43. Qd5+ (43. Qxh5 Rxf2+ 44. Kxf2 Qe3+ 45. Kf1 Qc1+ 46. Ke2 Qc2+ 47. Ke1 Qc3+ 48. Kf1 Qc1+ 49. Ke2 Qe3+ 50. Kd1 Qd3+ 51. Ke1 Qxg3+ 52. Ke2 Qxd6 $11) (43. Rxd4 Qc6+ 44. Qe4 Qxe4+ 45. Rxe4 Rf5 $16) (43. Qxd4 Qg5 $18) 43... Kh8 44. Qxd4+ Kg8 45. Qd5+ Kh8 46. Qe5+ (46. Qxh5 Qe1 $18) 46... Kg8 47. Qxh5 Qc8 48. Qd5+ Kh8) 41. Ne5 {[%emt 0:07:50] Weighted Error Value: White=0.20 (precise) /Black=0.38.  Loses game:     	---       	Black=1      Mistake:       	White=5     	Black=5      Inaccurate:     	White=3     	Black=1      OK:         	White=6     	Black=9      Best:        	White=3     	Black=2      Strong:       	White=2     	Black=1} 1-0

[Event "WSTCC-65 2024"]
[Site "Krakow"]
[Date "2024.07.05"]
[Round "4.6"]
[White "Mueller, Gerhard"]
[Black "Sonderstrup, Bjarne"]
[Result "1/2-1/2"]
[ECO "C11"]
[WhiteElo "2070"]
[BlackElo "2011"]
[Annotator "NA RC"]
[PlyCount "28"]
[EventDate "2024.07.01"]
[EventType "team-tourn"]
[EventCountry "POL"]
[SourceTitle "playchess.com"]
[Source "ChessBase"]
[SourceQuality "1"]
[TimeControl "40/5400+30:1800+30"]

1. d4 {[%emt 0:00:03]} Nf6 {[%emt 0:00:07]} 2. Nc3 {[%emt 0:00:05]} d5 {[%emt 0:00:52]} 3. Bg5 {[%emt 0:00:06]} e6 {[%emt 0:01:02]} 4. e4 {[%emt 0:00:08]} dxe4 {[%emt 0:00:20]} 5. Nxe4 {[%emt 0:00:08]} Be7 {[%emt 0:00:12]} 6. Bxf6 {[%emt 0:00:07]} Bxf6 {[%emt 0:00:13]} 7. Nf3 {[%emt 0:00:07]} Bd7 {[%emt 0:03:21]} 8. Bd3 {[%emt 0:03:15]} Bc6 {[%emt 0:00:33]} 9. c3 {[%emt 0:00:30]} Bxe4 {[%emt 0:03:41]} 10. Bxe4 {[%emt 0:00:08]} c6 {[%emt 0:00:08]} 11. Qc2 {[%emt 0:01:28]} g6 {[%emt 0:06:16]} 12. Ne5 {[%emt 0:10:08]} Bxe5 {[%emt 0:10:58]} 13. dxe5 {[%emt 0:00:07]} Nd7 {[%emt 0:01:56]} 14. f4 {[%emt 0:00:28]} Qb6 {[%emt 0:04:00]} 1/2-1/2

[Event "WSTCC-65 2024"]
[Site "Krakow"]
[Date "2024.07.05"]
[Round "4.6"]
[White "Barreto, Ignacio C. de Barros"]
[Black "Westerinen, Heikki M.J."]
[Result "1/2-1/2"]
[ECO "C13"]
[WhiteElo "2059"]
[BlackElo "2221"]
[Annotator "TA"]
[PlyCount "49"]
[EventDate "2024.07.01"]
[EventType "team-tourn"]
[EventCountry "POL"]
[SourceTitle "playchess.com"]
[Source "ChessBase"]
[SourceQuality "1"]
[TimeControl "40/5400+30:1800+30"]

{[%evp 16,49,-45,-87,-51,-115,-67,-76,-67,-74,-5,-7,26,7,16,-50,-55,-57,0,-30,0,0,0,-12,-16,-8,-12,-19,0,0,0,0,0,0,0,0]} 1. d4 {[%emt 0:00:46]} Nf6 {[%emt 0:02:22]} 2. Nc3 {[%emt 0:01:16]} d5 {[%emt 0:00:41]} 3. Bg5 {[%emt 0:00:14]} e6 {[%emt 0:11:15]} 4. e4 {[%emt 0:01:13]} Be7 {[%emt 0:01:08]} 5. Bxf6 {[%emt 0:06:23]} Bxf6 {[%emt 0:00:19]} 6. Nf3 {[%emt 0:00:03]} O-O {[%emt 0:03:10]} 7. Bd3 {[%emt 0:20:29]} c5 {[%emt 0:12:15]} 8. e5 {[%emt 0:07:19]} Be7 {[%emt 0:01:02]} 9. h4 {[%emt 0:10:57][%cal Od3h7]} h6 {[%emt 0:09:54]} 10. Qd2 {[%emt 0:08:43]} (10. dxc5 $15 Bxc5 11. O-O) 10... cxd4 {[%emt 0:01:18]} (10... Nc6 $17 11. dxc5 Bxc5) 11. Ne2 $15 {[%emt 0:00:15]} Nc6 {[%emt 0:01:18] Black is better.} 12. Nexd4 {[%emt 0:02:55]} f5 {[%emt 0:13:46]} (12... Nxd4 $17 13. Nxd4 f6) 13. c3 $11 {[%emt 0:03:00]} Bd7 {[%emt 0:05:07]} 14. O-O-O {[%emt 0:05:20]} Nxd4 {[%emt 0:04:35]} 15. cxd4 {[%emt 0:00:34]} ({Better is} 15. Nxd4 $11 Qc7 16. f4) 15... Qb6 {[%emt 0:03:23]} 16. Kb1 {[%emt 0:04:56]} Bb5 {[%emt 0:00:57]} (16... Rac8 $15) 17. Rc1 {[%emt 0:02:34]} Bxd3+ {[%emt 0:01:28]} 18. Qxd3 {[%emt 0:00:02] The position is equal.} Rac8 {[%emt 0:00:23]} 19. g3 {[%emt 0:00:32]} Rc6 {[%emt 0:01:45]} 20. Rc2 {[%emt 0:02:23]} Rfc8 {[%emt 0:00:35]} 21. Rhc1 {[%emt 0:00:08]} Kf7 {[%emt 0:02:43]} 22. h5 {[%emt 0:00:35]} Rxc2 {[%emt 0:00:25]} 23. Rxc2 {[%emt 0:00:03]} Rxc2 {[%emt 0:00:20]} 24. Kxc2 {[%emt 0:00:29]} Qc6+ {[%emt 0:00:48]} 25. Kb1 {[%emt 0:01:08] Weighted Error Value: White=0.16 (very precise) /Black=0.20 (precise) .  Mistake:       	White=2     	Black=3      Inaccurate:     	White=1     	Black=2      OK:         	White=6     	Black=3      Best:        	White=2     	---} 1/2-1/2

[Event "WSTCC-65 2024"]
[Site "Krakow"]
[Date "2024.07.05"]
[Round "4.7"]
[White "Maryasin, Boris"]
[Black "Roos, Louis"]
[Result "0-1"]
[ECO "C11"]
[WhiteElo "2209"]
[BlackElo "2288"]
[Annotator "TA"]
[PlyCount "106"]
[EventDate "2024.07.01"]
[EventType "team-tourn"]
[EventCountry "POL"]
[SourceTitle "playchess.com"]
[Source "ChessBase"]
[SourceQuality "1"]
[TimeControl "40/5400+30:1800+30"]

{[%evp 24,106,62,4,88,83,72,66,70,-16,0,0,46,-8,-14,-27,-10,-78,-45,-87,-58,-139,-157,-158,-81,-161,-151,-233,-97,-108,0,-148,-94,-138,-124,-179,-89,-102,-86,-229,-8,-60,-70,-81,-67,-225,-217,-187,-231,-217,-190,-186,-183,-246,-245,-273,-262,-249,-192,-274,-266,-363,-338,-385,-379,-387,-376,-375,-392,-691,-535,-603,-588,-591,-589,-1003,-820,-820,-820,-803,-804,-779,-766,-29974,-937]} 1. e4 {[%emt 0:00:05]} e6 {[%emt 0:00:08]} 2. d4 {[%emt 0:00:12]} d5 {[%emt 0:00:11]} 3. Nc3 {[%emt 0:00:18]} Nf6 {[%emt 0:00:35]} 4. e5 {[%emt 0:00:45]} Nfd7 {[%emt 0:00:13]} 5. Nf3 {[%emt 0:00:29]} a6 {[%emt 0:04:33]} 6. Ne2 {[%emt 0:05:00]} c5 {[%emt 0:00:27]} 7. c3 {[%emt 0:00:10]} Nc6 {[%emt 0:00:28]} 8. g3 {[%emt 0:01:31]} Qa5 {[%emt 0:03:43]} 9. Bd2 {[%emt 0:01:29]} b5 {[%emt 0:01:51]} 10. Bg2 {[%emt 0:01:42]} Qb6 {[%emt 0:10:09]} 11. O-O {[%emt 0:02:23]} a5 {[%emt 0:02:38]} 12. Be3 {[%emt 0:03:07]} Ba6 {[%emt 0:02:57]} 13. Re1 {[%emt 0:03:21]} (13. Ng5 $14) 13... b4 {[%emt 0:10:24]} (13... Be7 $11 {bleibt in der Remisbreite.}) 14. Nf4 $16 {[%emt 0:02:07]} h6 {[%emt 0:13:03]} 15. h4 {[%emt 0:03:32]} Be7 {[%emt 0:16:42]} 16. h5 {[%emt 0:04:28]} ({Günstiger ist} 16. Bh3 $14) 16... bxc3 $11 {[%emt 0:03:16]} 17. bxc3 {[%emt 0:00:16]} cxd4 {[%emt 0:00:31]} (17... O-O $11) 18. cxd4 {[%emt 0:00:30]} (18. Nxd4 $14 Nxd4 (18... Ndxe5 $2 19. Ndxe6 Qb8 20. Nxg7+ Kf8 21. Nf5 $18) 19. Qg4 (19. Bxd4 Qc6 $14) (19. cxd4 Bc4 $16) (19. Qxd4 Qxd4 20. Bxd4 Rc8 $16)) 18... Bb4 $11 {[%emt 0:00:24]} 19. Rb1 {[%emt 0:03:28]} Qa7 {[%emt 0:03:24]} 20. Bd2 {[%emt 0:05:54]} (20. Qc2 $11 {hält das Gleichgewicht.} Bxe1 21. Qxc6) 20... Nb6 {[%emt 0:07:05]} 21. Bxb4 {[%emt 0:03:40]} axb4 {[%emt 0:00:27]} 22. Nd3 {[%emt 0:02:19]} (22. Bh3 $15) 22... Bxd3 $17 {[%emt 0:01:55]} 23. Qxd3 {[%emt 0:00:08]} Nc4 {[%emt 0:00:34]} (23... O-O $142 {[%cal Ob6c4] ...Nc4! ist eine echte Drohung.} 24. Bf1 Rfc8 (24... Qxa2 25. Qb5 $14)) 24. Re2 {[%emt 0:00:42]} (24. Rec1 $17) 24... O-O $19 {[%emt 0:00:13]} 25. g4 {[%emt 0:00:22]} (25. Qd1 $17) 25... Qa3 {[%emt 0:01:07]} (25... Qe7 $19 {bietet bessere Gewinnchancen. Droht ...Ra3 und aus.} 26. Bf1 f6 27. exf6 Rxf6 (27... Qxf6 28. Bg2 $17)) 26. Qd1 $17 {[%emt 0:01:37]} Qa7 {[%emt 0:01:37]} (26... Qa4 $17 {Zielt auf ...Qxd1+ ab.} 27. Qd3 Qa3) 27. Rb3 {[%emt 0:02:04] [#]} (27. Qd3 $1 $11 {war der einzige Weg, das Gleichgewicht zu halten.}) 27... Qe7 {[%emt 0:00:52]} (27... Na3 $142 $1 28. Reb2 Nb5) 28. Qc1 {[%emt 0:02:49]} Ra6 {[%emt 0:00:48]} 29. Qf4 {[%emt 0:00:55]} (29. Bf1 $17) 29... f6 {[%emt 0:02:39]} (29... Rfa8 $19 {ist viel giftiger.} 30. Bf1 Rxa2 31. Rxa2 Rxa2) 30. exf6 $17 {[%emt 0:01:25]} Qxf6 {[%emt 0:00:32]} 31. Qc7 {[%emt 0:03:36]} (31. Qxf6 $17 Rxf6 32. Rd3) 31... Qf7 $2 {[%emt 0:04:38]} (31... Nxd4 $19 32. Nxd4 Qxd4) 32. Qxf7+ {[%emt 0:00:50]} (32. Qg3 $1 $11) 32... Kxf7 $15 {[%emt 0:02:36]} 33. g5 {[%emt 0:01:06]} Ke7 {[%emt 0:03:23]} 34. Rd3 $2 {[%emt 0:03:55]} (34. Bh3 $15 e5 35. gxh6 (35. Nxe5 N4xe5 36. gxh6 gxh6 $15) (35. dxe5 Rxf3 36. Rxf3 Nd4 $19) 35... gxh6 36. Nxe5 (36. dxe5 Rxf3 37. Rxf3 Nd4 $17) 36... N4xe5 37. Rbb2 (37. dxe5 $2 Nd4 $19)) 34... Rf4 $19 {[%emt 0:01:16]} 35. gxh6 {[%emt 0:06:12]} gxh6 {[%emt 0:00:01]} 36. Ne5 {[%emt 0:00:58]} N4xe5 {[%emt 0:01:12]} (36... Nxd4 37. Ng6+ Kd6 38. Rxe6+ (38. Nxf4 Nxe2+ 39. Nxe2 Rxa2 $14) 38... Nxe6 39. Rxd5+ Kc7 40. Nxf4 Nxf4 41. Rc5+ Kd7 42. Rxc4 Nxg2 43. Kxg2 $16) 37. dxe5 {[%emt 0:00:03]} Rf5 {[%emt 0:00:06]} 38. f4 {[%emt 0:02:51]} (38. Rde3 {war angesagt.}) 38... Rxf4 $19 {[%emt 0:00:54]} (38... Rxh5 39. Bh3 $17) 39. Rg3 {[%emt 0:00:02]} Nd4 {[%emt 0:00:27]} 40. Rb2 {[%emt 0:01:12]} Nf5 {[%emt 0:00:10]} 41. Rgb3 {[%emt 0:30:23]} (41. Rg8 {ist wohl besser.}) 41... Ra4 $19 {[%emt 0:31:21]} 42. Bf1 {[%emt 0:01:44]} Nd4 {[%emt 0:00:21]} 43. Rg3 {[%emt 0:00:34]} Nf3+ {[%emt 0:00:21]} 44. Kg2 {[%emt 0:00:45]} Nxe5 {[%emt 0:00:08]} 45. Rg7+ {[%emt 0:01:32]} Kf6 {[%emt 0:00:00]} 46. Rh7 $2 {[%emt 0:00:00]} (46. Rg3) 46... Nf7 {[%emt 0:00:00]} 47. Bd3 {[%emt 0:00:00]} b3 {[%emt 0:00:00]} 48. axb3 {[%emt 0:00:00]} Rg4+ {[%emt 0:00:00]} 49. Kf2 {[%emt 0:00:00]} Raf4+ {[%emt 0:00:00]} 50. Ke2 {[%emt 0:00:00]} Rg2+ {[%emt 0:00:00]} 51. Ke3 {[%emt 0:00:00]} Rxb2 {[%emt 0:00:00]} 52. Kxf4 {[%emt 0:00:00]} Rxb3 {[%emt 0:00:00]} 53. Bg6 {[%emt 0:00:00]} Ne5 {[%emt 0:00:00]} (53... Ng5 $142 54. Bd3 Nxh7 (54... Rxd3 55. Rxh6+ Kg7 56. Rg6+ Kf7 57. Rxg5 $17) 55. Ke3 e5 56. Ke2 Rxd3 57. Kxd3 e4+ 58. Kd4 Ng5 59. Ke3 Ke5 60. Ke2 Nf3 61. Kf2 d4 62. Ke2 d3+ 63. Ke3 Kf5 64. Kf2 Kf4 65. Kf1 e3 66. Kg2 e2 67. Kh1 e1=Q+ (67... e1=B {führt zum Matt.} 68. Kg2 d2 69. Kh3 d1=Q 70. Kg2 Qd2+ 71. Kh3 Qh2#) 68. Kg2 Qg3+ 69. Kh1 Qh3#) 0-1